[Event "Early-Titled-Tuesday-Blitz-September-26-2023"]
[Site "Chess.com"]
[Date "2023.09.26"]
[Round "7"]
[White "MikaelyanArman"]
[Black "marcodobrikov"]
[Result "0-1"]
[WhiteElo "2840"]
[BlackElo "2656"]
[TimeControl "180+1"]
[EndTime "9:19:47 PDT"]
[Termination "marcodobrikov won on time"]

1. e4 {[%clk 0:03:00.9]} 1... e6 {[%clk 0:02:59.5]} 2. Qe2 {[%clk 0:03:00.5]}
2... Ne7 {[%clk 0:02:59.3]} 3. g3 {[%clk 0:02:59.7]} 3... d5 {[%clk 0:03:00.2]}
4. exd5 {[%clk 0:03:00.2]} 4... exd5 {[%clk 0:03:01.1]} 5. Bg2 {[%clk
0:03:00.1]} 5... g6 {[%clk 0:02:57.2]} 6. Nf3 {[%clk 0:02:58.4]} 6... Bg7 {[%clk
0:02:57.7]} 7. O-O {[%clk 0:02:59.1]} 7... O-O {[%clk 0:02:58.6]} 8. d4 {[%clk
0:02:58.9]} 8... Bg4 {[%clk 0:02:56.6]} 9. c3 {[%clk 0:02:57.9]} 9... c6 {[%clk
0:02:57.4]} 10. h3 {[%clk 0:02:57.9]} 10... Bxf3 {[%clk 0:02:57.4]} 11. Bxf3
{[%clk 0:02:58.8]} 11... Nd7 {[%clk 0:02:57.5]} 12. Nd2 {[%clk 0:02:56.3]} 12...
Re8 {[%clk 0:02:56.8]} 13. Qd3 {[%clk 0:02:54.6]} 13... Nf5 {[%clk 0:02:54]} 14.
Nb3 {[%clk 0:02:49]} 14... Nd6 {[%clk 0:02:46.3]} 15. Bf4 {[%clk 0:02:41.7]}
15... Ne4 {[%clk 0:02:43.9]} 16. Nd2 {[%clk 0:02:39.3]} 16... f5 {[%clk
0:02:44.2]} 17. Qc2 {[%clk 0:02:35.8]} 17... Nf8 {[%clk 0:02:26]} 18. Nxe4
{[%clk 0:02:31.7]} 18... fxe4 {[%clk 0:02:22.4]} 19. Bg2 {[%clk 0:02:31.7]}
19... Ne6 {[%clk 0:02:23.1]} 20. Be3 {[%clk 0:02:32]} 20... Bf6 {[%clk
0:02:23.4]} 21. h4 {[%clk 0:02:28.2]} 21... Rf8 {[%clk 0:02:18.8]} 22. Rad1
{[%clk 0:02:25.8]} 22... Ng7 {[%clk 0:02:19]} 23. Qb3 {[%clk 0:02:21.1]} 23...
Qb6 {[%clk 0:02:19.1]} 24. Qa3 {[%clk 0:02:01.2]} 24... Rf7 {[%clk 0:02:16.9]}
25. c4 {[%clk 0:01:59.5]} 25... Be7 {[%clk 0:01:59]} 26. Qc3 {[%clk 0:01:58.5]}
26... Raf8 {[%clk 0:01:56.4]} 27. Bh3 {[%clk 0:01:51.2]} 27... Rf3 {[%clk
0:01:52.8]} 28. cxd5 {[%clk 0:01:46.7]} 28... cxd5 {[%clk 0:01:52.2]} 29. Bg2
{[%clk 0:01:21.9]} 29... R3f7 {[%clk 0:01:51.9]} 30. Bh6 {[%clk 0:01:14.6]}
30... Bd6 {[%clk 0:01:39.9]} 31. Qb3 {[%clk 0:01:02.4]} 31... Qxb3 {[%clk
0:01:38.3]} 32. axb3 {[%clk 0:01:03.3]} 32... Rc8 {[%clk 0:01:36.3]} 33. Bh3
{[%clk 0:00:58.8]} 33... Rc2 {[%clk 0:01:34.4]} 34. Rc1 {[%clk 0:00:58.2]} 34...
Rfc7 {[%clk 0:01:31.3]} 35. Rxc2 {[%clk 0:00:48.6]} 35... Rxc2 {[%clk
0:01:32.2]} 36. Rc1 {[%clk 0:00:49.1]} 36... Rxb2 {[%clk 0:01:24.8]} 37. Rc8+
{[%clk 0:00:41]} 37... Kf7 {[%clk 0:01:24]} 38. Rd8 {[%clk 0:00:37.1]} 38... Ne6
{[%clk 0:01:05.8]} 39. Rxd6 {[%clk 0:00:34.2]} 39... Nxd4 {[%clk 0:01:06.4]} 40.
Rd7+ {[%clk 0:00:28.1]} 40... Ke8 {[%clk 0:01:02.9]} 41. Rxd5 {[%clk 0:00:23.7]}
41... Nf3+ {[%clk 0:01:03.3]} 42. Kg2 {[%clk 0:00:22.7]} 42... Rb1 {[%clk
0:01:04.2]} 43. Bd7+ {[%clk 0:00:21.6]} 43... Ke7 {[%clk 0:01:01.9]} 44. Kh3
{[%clk 0:00:16.3]} 44... Rxb3 {[%clk 0:01:00]} 45. Ba4 {[%clk 0:00:15.4]} 45...
Rb2 {[%clk 0:00:58.6]} 46. Rd7+ {[%clk 0:00:12]} 46... Ke6 {[%clk 0:00:48.4]}
47. Rxh7 {[%clk 0:00:11.9]} 47... Rxf2 {[%clk 0:00:48.5]} 48. Bb3+ {[%clk
0:00:12.5]} 48... Kf5 {[%clk 0:00:48.9]} 49. Rf7+ {[%clk 0:00:10.7]} 49... Ke5
{[%clk 0:00:48.9]} 50. Be3 {[%clk 0:00:05.5]} 50... Rb2 {[%clk 0:00:46]} 51. Bc4
{[%clk 0:00:03.5]} 51... b5 {[%clk 0:00:43.4]} 52. Bf1 {[%clk 0:00:02.5]} 52...
a5 {[%clk 0:00:44.1]} 53. Rb7 {[%clk 0:00:01.8]} 53... b4 {[%clk 0:00:44.6]} 54.
Rb5+ {[%clk 0:00:02.1]} 54... Kf6 {[%clk 0:00:44.8]} 55. Rxa5 {[%clk 0:00:01.6]}
55... Rh2+ {[%clk 0:00:44.5]} 56. Kg4 {[%clk 0:00:01.8]} 56... Ne5+ {[%clk
0:00:45.4]} 0-1

[Event "Early-Titled-Tuesday-Blitz-September-26-2023"]
[Site "Chess.com"]
[Date "2023.09.26"]
[Round "7"]
[White "kroppar"]
[Black "Rital44"]
[Result "1-0"]
[WhiteElo "2407"]
[BlackElo "2521"]
[TimeControl "180+1"]
[EndTime "9:19:49 PDT"]
[Termination "kroppar won by resignation"]

1. e4 {[%clk 0:03:00.9]} 1... c5 {[%clk 0:03:00.3]} 2. Nf3 {[%clk 0:03:00.6]}
2... Nc6 {[%clk 0:03:00.4]} 3. Bb5 {[%clk 0:02:59.5]} 3... g6 {[%clk 0:03:00]}
4. Bxc6 {[%clk 0:02:59.7]} 4... dxc6 {[%clk 0:03:00.9]} 5. O-O {[%clk
0:03:00.1]} 5... Bg7 {[%clk 0:03:01.4]} 6. d3 {[%clk 0:03:00.1]} 6... e5 {[%clk
0:03:01.9]} 7. Be3 {[%clk 0:02:56.7]} 7... Qe7 {[%clk 0:03:01.2]} 8. a4 {[%clk
0:02:54]} 8... Be6 {[%clk 0:03:00.1]} 9. Qd2 {[%clk 0:02:50.6]} 9... Rd8 {[%clk
0:02:58.2]} 10. Qc3 {[%clk 0:02:44.9]} 10... b6 {[%clk 0:02:56.2]} 11. a5 {[%clk
0:02:45.5]} 11... Nf6 {[%clk 0:02:53.9]} 12. axb6 {[%clk 0:02:44.5]} 12... axb6
{[%clk 0:02:53.8]} 13. Ra6 {[%clk 0:02:44.9]} 13... Rb8 {[%clk 0:02:53.5]} 14.
Nxe5 {[%clk 0:02:41.5]} 14... Ng4 {[%clk 0:02:36.5]} 15. Nxc6 {[%clk 0:02:34.9]}
15... Qh4 {[%clk 0:02:22.2]} 16. Bf4 {[%clk 0:02:09.7]} 16... Bxc3 {[%clk
0:02:20.9]} 17. Nxc3 {[%clk 0:01:42.8]} 17... Rc8 {[%clk 0:02:19.3]} 18. Na7
{[%clk 0:01:20.4]} 18... Ra8 {[%clk 0:02:05]} 19. f3 {[%clk 0:01:07.9]} 19...
Nf6 {[%clk 0:01:51.3]} 20. g3 {[%clk 0:00:55.3]} 20... Qh5 {[%clk 0:01:47]} 21.
Nab5 {[%clk 0:00:37.6]} 21... Rxa6 {[%clk 0:01:45.9]} 22. Nc7+ {[%clk
0:00:37.5]} 22... Kd7 {[%clk 0:01:46.4]} 23. Nxa6 {[%clk 0:00:37]} 23... Rc8
{[%clk 0:01:40]} 24. Nb8+ {[%clk 0:00:30.8]} 24... Ke7 {[%clk 0:01:34.7]} 25.
Ra1 {[%clk 0:00:27.8]} 25... g5 {[%clk 0:01:28.9]} 26. Ra7+ {[%clk 0:00:26.1]}
26... Kf8 {[%clk 0:01:23.5]} 27. Bd6+ {[%clk 0:00:25.6]} 27... Kg8 {[%clk
0:01:21.3]} 28. g4 {[%clk 0:00:20]} 28... Qh3 {[%clk 0:01:11.4]} 29. Bg3 {[%clk
0:00:10.8]} 29... h5 {[%clk 0:01:10.6]} 30. Nd1 {[%clk 0:00:08.4]} 30... hxg4
{[%clk 0:01:10.3]} 31. Nf2 {[%clk 0:00:09.1]} 31... Qh5 {[%clk 0:01:08.9]} 32.
e5 {[%clk 0:00:06.4]} 32... Nd5 {[%clk 0:01:07.3]} 33. Nd7 {[%clk 0:00:04.2]}
33... Bxd7 {[%clk 0:01:05]} 34. Rxd7 {[%clk 0:00:05.1]} 34... Nf4 {[%clk
0:01:03]} 35. fxg4 {[%clk 0:00:04]} 35... Qg6 {[%clk 0:00:58.8]} 36. Rd6 {[%clk
0:00:03.9]} 36... Qg7 {[%clk 0:00:56.4]} 37. Ne4 {[%clk 0:00:04.5]} 37... Qxe5
{[%clk 0:00:55.5]} 38. Nf6+ {[%clk 0:00:01.1]} 38... Kf8 {[%clk 0:00:53.3]} 39.
Nd7+ {[%clk 0:00:01.2]} 39... Kg8 {[%clk 0:00:53.2]} 40. Nxe5 {[%clk 0:00:01.9]}
40... Ne2+ {[%clk 0:00:51.3]} 41. Kf2 {[%clk 0:00:01.9]} 41... Nd4 {[%clk
0:00:52.1]} 42. Ke3 {[%clk 0:00:01.5]} 42... Nxc2+ {[%clk 0:00:52.5]} 43. Kd2
{[%clk 0:00:01.8]} 43... Nd4 {[%clk 0:00:50.3]} 44. Rxb6 {[%clk 0:00:02.4]}
44... Ra8 {[%clk 0:00:48.1]} 45. Rb7 {[%clk 0:00:02.1]} 45... Ra2 {[%clk
0:00:48]} 46. Rxf7 {[%clk 0:00:01.6]} 46... Rxb2+ {[%clk 0:00:48.5]} 47. Ke1
{[%clk 0:00:01.9]} 47... Nc2+ {[%clk 0:00:43.4]} 48. Ke2 {[%clk 0:00:02.1]}
48... Nb4+ {[%clk 0:00:42.8]} 49. Kd1 {[%clk 0:00:02.6]} 49... Nxd3 {[%clk
0:00:42.1]} 50. Rf5 {[%clk 0:00:03.2]} 50... Nb4 {[%clk 0:00:38.3]} 51. Rxg5+
{[%clk 0:00:03.6]} 51... Kf8 {[%clk 0:00:39]} 52. Nf3 {[%clk 0:00:03.8]} 52...
c4 {[%clk 0:00:36.9]} 53. Rf5+ {[%clk 0:00:04.7]} 53... Ke8 {[%clk 0:00:36.5]}
54. Be5 {[%clk 0:00:05]} 54... Rb1+ {[%clk 0:00:35.8]} 55. Kd2 {[%clk
0:00:05.1]} 55... Nd5 {[%clk 0:00:32.9]} 56. Bd4 {[%clk 0:00:05.3]} 56... Kd7
{[%clk 0:00:27.3]} 57. Rxd5+ {[%clk 0:00:05.2]} 57... Kc6 {[%clk 0:00:27.9]} 58.
Ra5 {[%clk 0:00:05.7]} 1-0

[Event "Early-Titled-Tuesday-Blitz-September-26-2023"]
[Site "Chess.com"]
[Date "2023.09.26"]
[Round "7"]
[White "Kirill_Klukin"]
[Black "karinachess1"]
[Result "1-0"]
[WhiteElo "2723"]
[BlackElo "2605"]
[TimeControl "180+1"]
[EndTime "9:19:52 PDT"]
[Termination "Kirill_Klukin won by resignation"]

1. e4 {[%clk 0:02:55.3]} 1... e5 {[%clk 0:02:57]} 2. Nf3 {[%clk 0:02:55.2]} 2...
Nc6 {[%clk 0:02:55.3]} 3. d4 {[%clk 0:02:54.8]} 3... exd4 {[%clk 0:02:55.3]} 4.
Nxd4 {[%clk 0:02:53.6]} 4... Bc5 {[%clk 0:02:55.1]} 5. Nb3 {[%clk 0:02:53.2]}
5... Bb6 {[%clk 0:02:55.2]} 6. Nc3 {[%clk 0:02:53]} 6... Nf6 {[%clk 0:02:55.1]}
7. Qe2 {[%clk 0:02:53.2]} 7... O-O {[%clk 0:02:52.8]} 8. Bg5 {[%clk 0:02:53]}
8... Nd4 {[%clk 0:02:37.3]} 9. Qd2 {[%clk 0:02:45.2]} 9... Nxb3 {[%clk
0:02:33.6]} 10. axb3 {[%clk 0:02:44.4]} 10... h6 {[%clk 0:02:32.2]} 11. Bh4
{[%clk 0:02:42.9]} 11... Re8 {[%clk 0:02:25]} 12. O-O-O {[%clk 0:02:21.6]} 12...
Nxe4 {[%clk 0:01:59.4]} 13. Qf4 {[%clk 0:01:39.1]} 13... g5 {[%clk 0:01:28]} 14.
Nxe4 {[%clk 0:01:37.2]} 14... gxf4 {[%clk 0:01:26.2]} 15. Bxd8 {[%clk
0:01:37.3]} 15... Rxd8 {[%clk 0:01:07.8]} 16. g3 {[%clk 0:01:05.7]} 16... fxg3
{[%clk 0:00:54.7]} 17. hxg3 {[%clk 0:01:05.5]} 17... Kg7 {[%clk 0:00:54.9]} 18.
Bc4 {[%clk 0:00:55.8]} 18... d6 {[%clk 0:00:51.6]} 19. Rh2 {[%clk 0:00:25.8]}
19... Bf5 {[%clk 0:00:47]} 20. Bd3 {[%clk 0:00:24.3]} 20... d5 {[%clk
0:00:42.5]} 21. Nc5 {[%clk 0:00:14.4]} 21... Bxd3 {[%clk 0:00:40.9]} 22. Nxd3
{[%clk 0:00:15.3]} 22... c6 {[%clk 0:00:35.7]} 23. Rdh1 {[%clk 0:00:14]} 23...
Rd6 {[%clk 0:00:34.3]} 24. Kd2 {[%clk 0:00:14.6]} 24... Re8 {[%clk 0:00:29.1]}
25. Nf4 {[%clk 0:00:14.7]} 25... Bc7 {[%clk 0:00:20.1]} 26. Rh4 {[%clk
0:00:14.8]} 26... c5 {[%clk 0:00:15.7]} 27. Rg4+ {[%clk 0:00:14.6]} 27... Kh7
{[%clk 0:00:14]} 28. Rh5 {[%clk 0:00:15.4]} 28... d4 {[%clk 0:00:12.6]} 29. Rxc5
{[%clk 0:00:14.8]} 29... Bb6 {[%clk 0:00:11.1]} 30. Rd5 {[%clk 0:00:14.8]} 30...
Red8 {[%clk 0:00:10.6]} 31. Rxd6 {[%clk 0:00:14.8]} 31... Rxd6 {[%clk
0:00:11.5]} 32. Kd3 {[%clk 0:00:15.4]} 32... a6 {[%clk 0:00:08.9]} 33. Ne2
{[%clk 0:00:16]} 33... Rf6 {[%clk 0:00:07.6]} 34. Rf4 {[%clk 0:00:16]} 34... Kg6
{[%clk 0:00:06]} 35. Rxf6+ {[%clk 0:00:16.4]} 35... Kxf6 {[%clk 0:00:06.9]} 36.
Nxd4 {[%clk 0:00:16.6]} 36... Kg5 {[%clk 0:00:06.9]} 37. c3 {[%clk 0:00:16.3]}
37... Kg4 {[%clk 0:00:06.9]} 38. Ke4 {[%clk 0:00:16.7]} 38... h5 {[%clk
0:00:06.9]} 39. b4 {[%clk 0:00:16.5]} 39... f6 {[%clk 0:00:05.8]} 40. b3 {[%clk
0:00:15.7]} 40... Ba7 {[%clk 0:00:05.7]} 41. Ke3 {[%clk 0:00:11.6]} 41... Kh3
{[%clk 0:00:05]} 42. Kf3 {[%clk 0:00:11.8]} 42... h4 {[%clk 0:00:04.1]} 43. gxh4
{[%clk 0:00:12.1]} 43... Kxh4 {[%clk 0:00:05]} 44. Ke4 {[%clk 0:00:12.1]} 44...
Kg4 {[%clk 0:00:05.2]} 45. f4 {[%clk 0:00:12.1]} 45... Kg3 {[%clk 0:00:04.1]}
46. f5 {[%clk 0:00:12.6]} 46... Kg4 {[%clk 0:00:04.4]} 47. Ne6 {[%clk 0:00:13]}
47... Bf2 {[%clk 0:00:03.9]} 48. c4 {[%clk 0:00:13.4]} 48... Be1 {[%clk
0:00:04.2]} 49. Nc5 {[%clk 0:00:13.6]} 49... Bxb4 {[%clk 0:00:03.7]} 50. Nxb7
{[%clk 0:00:14.1]} 50... Kg5 {[%clk 0:00:02.6]} 51. c5 {[%clk 0:00:14.4]} 51...
Kh6 {[%clk 0:00:02.5]} 52. c6 {[%clk 0:00:14.9]} 52... Kg7 {[%clk 0:00:03.1]}
53. c7 {[%clk 0:00:15.5]} 53... Kf7 {[%clk 0:00:04]} 54. c8=Q {[%clk 0:00:16.1]}
1-0

[Event "Early-Titled-Tuesday-Blitz-September-26-2023"]
[Site "Chess.com"]
[Date "2023.09.26"]
[Round "7"]
[White "Zarinur"]
[Black "ElenaPershina"]
[Result "1-0"]
[WhiteElo "2530"]
[BlackElo "2324"]
[TimeControl "180+1"]
[EndTime "9:19:52 PDT"]
[Termination "Zarinur won by checkmate"]

1. e4 {[%clk 0:02:49.4]} 1... c5 {[%clk 0:00:15.1]} 2. a3 {[%clk 0:02:36.4]}
2... Nc6 {[%clk 0:00:14.4]} 3. Nf3 {[%clk 0:02:36.5]} 3... g6 {[%clk 0:00:13.8]}
4. Bc4 {[%clk 0:02:37]} 4... Bg7 {[%clk 0:00:13.5]} 5. O-O {[%clk 0:02:37.6]}
5... e6 {[%clk 0:00:13.8]} 6. Nc3 {[%clk 0:02:32.1]} 6... Nge7 {[%clk
0:00:13.9]} 7. d3 {[%clk 0:02:31.2]} 7... O-O {[%clk 0:00:14.4]} 8. h4 {[%clk
0:02:26.1]} 8... d5 {[%clk 0:00:14.9]} 9. Ba2 {[%clk 0:02:26.1]} 9... d4 {[%clk
0:00:14.2]} 10. Ne2 {[%clk 0:02:25.9]} 10... e5 {[%clk 0:00:14.5]} 11. h5 {[%clk
0:02:26.1]} 11... Bg4 {[%clk 0:00:14.1]} 12. h6 {[%clk 0:02:22.5]} 12... Bh8
{[%clk 0:00:14.4]} 13. Ng3 {[%clk 0:02:22.2]} 13... Qd7 {[%clk 0:00:13.9]} 14.
Bg5 {[%clk 0:02:08.1]} 14... b5 {[%clk 0:00:13.7]} 15. Re1 {[%clk 0:01:48.6]}
15... Rac8 {[%clk 0:00:14.1]} 16. Nf1 {[%clk 0:01:47.2]} 16... Nd8 {[%clk
0:00:13.6]} 17. N1h2 {[%clk 0:01:47]} 17... c4 {[%clk 0:00:13.6]} 18. Nxe5
{[%clk 0:01:42.3]} 18... Bxe5 {[%clk 0:00:11.4]} 19. Nxg4 {[%clk 0:01:35.2]}
19... f6 {[%clk 0:00:09.7]} 20. Nxe5 {[%clk 0:01:13.4]} 20... fxe5 {[%clk
0:00:10.6]} 21. Qe2 {[%clk 0:01:12.6]} 21... Ne6 {[%clk 0:00:10.7]} 22. Bxe7
{[%clk 0:01:10]} 22... Qxe7 {[%clk 0:00:11.6]} 23. dxc4 {[%clk 0:01:10.6]} 23...
Nf4 {[%clk 0:00:11.7]} 24. Qg4 {[%clk 0:00:56.5]} 24... Kh8 {[%clk 0:00:11.6]}
25. g3 {[%clk 0:00:55.7]} 25... Ne6 {[%clk 0:00:10.8]} 26. cxb5 {[%clk
0:00:54.8]} 26... Ng5 {[%clk 0:00:11.4]} 27. Bb3 {[%clk 0:00:43.5]} 27... Nf3+
{[%clk 0:00:10.8]} 28. Kg2 {[%clk 0:00:43.9]} 28... Nxe1+ {[%clk 0:00:11]} 29.
Rxe1 {[%clk 0:00:44.8]} 29... Qf6 {[%clk 0:00:10.9]} 30. f3 {[%clk 0:00:35.8]}
30... Rcd8 {[%clk 0:00:11.1]} 31. Rd1 {[%clk 0:00:29.7]} 31... Rd6 {[%clk
0:00:09.7]} 32. Bd5 {[%clk 0:00:17.2]} 32... Rdd8 {[%clk 0:00:09.6]} 33. Bc6
{[%clk 0:00:17.4]} 33... Rd6 {[%clk 0:00:09.4]} 34. Bd5 {[%clk 0:00:17.1]} 34...
Rdd8 {[%clk 0:00:09.5]} 35. Rf1 {[%clk 0:00:17.7]} 35... Rc8 {[%clk 0:00:08.8]}
36. Bb3 {[%clk 0:00:16.8]} 36... Rcd8 {[%clk 0:00:09.2]} 37. f4 {[%clk
0:00:17.2]} 37... d3 {[%clk 0:00:07.8]} 38. c4 {[%clk 0:00:06.6]} 38... d2
{[%clk 0:00:07.8]} 39. Bd1 {[%clk 0:00:06.4]} 39... Rd4 {[%clk 0:00:06.7]} 40.
Rf3 {[%clk 0:00:04.6]} 40... Rxe4 {[%clk 0:00:06.6]} 41. fxe5 {[%clk 0:00:05]}
41... Qxf3+ {[%clk 0:00:06.2]} 42. Bxf3 {[%clk 0:00:04]} 42... Re1 {[%clk
0:00:06.4]} 43. e6 {[%clk 0:00:03.1]} 43... Re8 {[%clk 0:00:04.8]} 44. e7 {[%clk
0:00:01.8]} 44... R8xe7 {[%clk 0:00:04.9]} 45. Qd4+ {[%clk 0:00:02.4]} 45... Kg8
{[%clk 0:00:04.5]} 46. Bd5+ {[%clk 0:00:02.6]} 46... Kf8 {[%clk 0:00:04.4]} 47.
Qh8# {[%clk 0:00:03.3]} 1-0

[Event "Early-Titled-Tuesday-Blitz-September-26-2023"]
[Site "Chess.com"]
[Date "2023.09.26"]
[Round "7"]
[White "ChessArchitect64"]
[Black "Alenzer"]
[Result "0-1"]
[WhiteElo "2236"]
[BlackElo "2120"]
[TimeControl "180+1"]
[EndTime "9:19:54 PDT"]
[Termination "Alenzer won by checkmate"]

1. d4 {[%clk 0:03:00.3]} 1... d5 {[%clk 0:02:59.6]} 2. c4 {[%clk 0:03:00]} 2...
dxc4 {[%clk 0:02:59.8]} 3. e3 {[%clk 0:02:58.9]} 3... Nf6 {[%clk 0:02:58.7]} 4.
Bxc4 {[%clk 0:02:58.9]} 4... e6 {[%clk 0:02:59]} 5. Nc3 {[%clk 0:02:58.5]} 5...
a6 {[%clk 0:02:58.1]} 6. a4 {[%clk 0:02:58.2]} 6... Nbd7 {[%clk 0:02:54]} 7. Nf3
{[%clk 0:02:58.2]} 7... c5 {[%clk 0:02:46.3]} 8. O-O {[%clk 0:02:56.2]} 8... Be7
{[%clk 0:02:41.6]} 9. a5 {[%clk 0:02:49]} 9... O-O {[%clk 0:02:40.4]} 10. e4
{[%clk 0:02:30.1]} 10... cxd4 {[%clk 0:02:37]} 11. Nxd4 {[%clk 0:02:30.2]} 11...
b5 {[%clk 0:02:33.4]} 12. axb6 {[%clk 0:02:22.3]} 12... Nxb6 {[%clk 0:02:32.6]}
13. Be2 {[%clk 0:02:22.8]} 13... Bb7 {[%clk 0:02:18.3]} 14. e5 {[%clk
0:02:17.9]} 14... Nfd5 {[%clk 0:02:17.2]} 15. Nxd5 {[%clk 0:02:03.3]} 15... Nxd5
{[%clk 0:02:12.9]} 16. Bd2 {[%clk 0:01:51.1]} 16... Qb6 {[%clk 0:02:08.3]} 17.
Ba5 {[%clk 0:01:45.5]} 17... Qa7 {[%clk 0:01:52.4]} 18. Bd3 {[%clk 0:01:21.1]}
18... g6 {[%clk 0:01:48.3]} 19. Nf3 {[%clk 0:01:01.1]} 19... Nf4 {[%clk
0:01:46.3]} 20. Be2 {[%clk 0:00:56.6]} 20... Bc5 {[%clk 0:01:29.9]} 21. Qd2
{[%clk 0:00:48.5]} 21... Nxe2+ {[%clk 0:01:18.5]} 22. Qxe2 {[%clk 0:00:49.4]}
22... Bb6 {[%clk 0:01:09.4]} 23. Bb4 {[%clk 0:00:46.9]} 23... Rfc8 {[%clk
0:01:09.1]} 24. h4 {[%clk 0:00:45.7]} 24... Bc5 {[%clk 0:01:03.8]} 25. Bc3
{[%clk 0:00:44.2]} 25... Rd8 {[%clk 0:01:01.5]} 26. Rfd1 {[%clk 0:00:43.4]}
26... Qb6 {[%clk 0:00:57.2]} 27. h5 {[%clk 0:00:40.7]} 27... Rxd1+ {[%clk
0:00:43]} 28. Rxd1 {[%clk 0:00:40.3]} 28... Rd8 {[%clk 0:00:43.4]} 29. Rxd8+
{[%clk 0:00:34.5]} 29... Qxd8 {[%clk 0:00:43.7]} 30. h6 {[%clk 0:00:32.7]} 30...
Bf8 {[%clk 0:00:42.6]} 31. Qe3 {[%clk 0:00:23]} 31... Qd5 {[%clk 0:00:40.8]} 32.
Bd2 {[%clk 0:00:20.1]} 32... a5 {[%clk 0:00:35.4]} 33. Qf4 {[%clk 0:00:18.3]}
33... a4 {[%clk 0:00:32.1]} 34. Kh2 {[%clk 0:00:16.9]} 34... Bc6 {[%clk
0:00:19.2]} 35. Qf6 {[%clk 0:00:11.6]} 35... Qe4 {[%clk 0:00:14.9]} 36. Be3
{[%clk 0:00:03.5]} 36... Qg4 {[%clk 0:00:12.9]} 37. Bf4 {[%clk 0:00:01.8]} 37...
Qh5+ {[%clk 0:00:12.1]} 38. Kg1 {[%clk 0:00:01.8]} 38... Qg4 {[%clk 0:00:12.7]}
39. Be3 {[%clk 0:00:01.3]} 39... a3 {[%clk 0:00:10.6]} 40. Kf1 {[%clk
0:00:01.8]} 40... axb2 {[%clk 0:00:10]} 41. Nd2 {[%clk 0:00:01.3]} 41... b1=Q+
{[%clk 0:00:06]} 42. Nxb1 {[%clk 0:00:01.5]} 42... Qd1# {[%clk 0:00:06.6]} 0-1

[Event "Early-Titled-Tuesday-Blitz-September-26-2023"]
[Site "Chess.com"]
[Date "2023.09.26"]
[Round "7"]
[White "MKlose11"]
[Black "C_K_G"]
[Result "1-0"]
[WhiteElo "2610"]
[BlackElo "1921"]
[TimeControl "180+1"]
[EndTime "9:19:56 PDT"]
[Termination "MKlose11 won on time"]

1. e4 {[%clk 0:02:50.4]} 1... c5 {[%clk 0:03:00]} 2. Nc3 {[%clk 0:02:48.5]} 2...
d6 {[%clk 0:02:59.7]} 3. g3 {[%clk 0:02:49.4]} 3... Nf6 {[%clk 0:02:59.3]} 4.
Bg2 {[%clk 0:02:50.3]} 4... Nc6 {[%clk 0:02:59]} 5. d3 {[%clk 0:02:50.3]} 5...
e6 {[%clk 0:02:58.9]} 6. f4 {[%clk 0:02:50.3]} 6... a6 {[%clk 0:02:57.9]} 7. Nf3
{[%clk 0:02:50.4]} 7... Qc7 {[%clk 0:02:57.7]} 8. O-O {[%clk 0:02:51]} 8... Be7
{[%clk 0:02:57.8]} 9. h3 {[%clk 0:02:51.4]} 9... h5 {[%clk 0:02:57]} 10. Be3
{[%clk 0:02:50]} 10... b5 {[%clk 0:02:53]} 11. a3 {[%clk 0:02:48.7]} 11... Bb7
{[%clk 0:02:52.5]} 12. Qe2 {[%clk 0:02:30.1]} 12... d5 {[%clk 0:02:27.3]} 13. e5
{[%clk 0:02:11.5]} 13... Nd7 {[%clk 0:02:26.2]} 14. d4 {[%clk 0:02:10.7]} 14...
cxd4 {[%clk 0:02:19.6]} 15. Nxd4 {[%clk 0:02:11.6]} 15... Nxd4 {[%clk
0:02:12.9]} 16. Bxd4 {[%clk 0:02:11.2]} 16... Bc5 {[%clk 0:02:10]} 17. Qe3
{[%clk 0:02:09.7]} 17... Bxd4 {[%clk 0:02:09]} 18. Qxd4 {[%clk 0:02:10.6]} 18...
Qc5 {[%clk 0:02:05.9]} 19. Rad1 {[%clk 0:02:08]} 19... Rc8 {[%clk 0:02:04.5]}
20. Rf2 {[%clk 0:02:02.8]} 20... Qxd4 {[%clk 0:02:04]} 21. Rxd4 {[%clk
0:02:02.3]} 21... g6 {[%clk 0:01:58.5]} 22. Rfd2 {[%clk 0:02:01.7]} 22... Nb6
{[%clk 0:01:57.9]} 23. Bf1 {[%clk 0:01:59.5]} 23... Ke7 {[%clk 0:01:53.2]} 24.
Nd1 {[%clk 0:01:58.4]} 24... Rc7 {[%clk 0:01:49.1]} 25. Ne3 {[%clk 0:01:57.6]}
25... Rhc8 {[%clk 0:01:46.7]} 26. c3 {[%clk 0:01:57.2]} 26... Na4 {[%clk
0:01:46]} 27. Kf2 {[%clk 0:01:55.2]} 27... Nc5 {[%clk 0:01:45.7]} 28. Rd1 {[%clk
0:01:52.6]} 28... Na4 {[%clk 0:01:35.4]} 29. Rb1 {[%clk 0:01:49.8]} 29... Rc5
{[%clk 0:01:13.9]} 30. Bd3 {[%clk 0:01:48.1]} 30... a5 {[%clk 0:01:06.8]} 31.
Bc2 {[%clk 0:01:47]} 31... Nb6 {[%clk 0:00:57.1]} 32. g4 {[%clk 0:01:44]} 32...
hxg4 {[%clk 0:00:55.7]} 33. hxg4 {[%clk 0:01:44.9]} 33... Nc4 {[%clk 0:00:44.6]}
34. Ng2 {[%clk 0:01:33.1]} 34... Ba6 {[%clk 0:00:39.3]} 35. Bd3 {[%clk
0:01:32.7]} 35... Rb8 {[%clk 0:00:15.9]} 36. Ke2 {[%clk 0:01:21]} 36... b4
{[%clk 0:00:14.8]} 37. axb4 {[%clk 0:01:15.7]} 37... axb4 {[%clk 0:00:15.7]} 38.
b3 {[%clk 0:01:16.2]} 38... Na3 {[%clk 0:00:14.2]} 39. cxb4 {[%clk 0:01:12.3]}
39... Rc3 {[%clk 0:00:09.1]} 40. Rd1 {[%clk 0:00:48.3]} 40... Rxd3 {[%clk
0:00:06.5]} 41. R1xd3 {[%clk 0:00:41.6]} 41... Nc2 {[%clk 0:00:06.7]} 42. Kd2
{[%clk 0:00:42]} 42... Nxb4 {[%clk 0:00:04.9]} 43. Rc3 {[%clk 0:00:35.8]} 43...
Rb7 {[%clk 0:00:02.6]} 44. Ne3 {[%clk 0:00:34.1]} 44... Na2 {[%clk 0:00:02.4]}
45. Rc6 {[%clk 0:00:28.9]} 45... Bb5 {[%clk 0:00:02.6]} 46. Rc5 {[%clk
0:00:29.4]} 46... Bd7 {[%clk 0:00:01.2]} 47. Ra5 {[%clk 0:00:26.8]} 47... Nb4
{[%clk 0:00:01.4]} 48. f5 {[%clk 0:00:21]} 48... gxf5 {[%clk 0:00:01.8]} 49.
gxf5 {[%clk 0:00:20.3]} 49... Nc6 {[%clk 0:00:02]} 50. f6+ {[%clk 0:00:20.7]}
50... Kd8 {[%clk 0:00:01.9]} 51. Ra8+ {[%clk 0:00:19.6]} 51... Kc7 {[%clk
0:00:02.3]} 52. Rh4 {[%clk 0:00:18]} 1-0